bitfinex/quotes_SOLUSD_20250206
["timestamp","ask_amount","ask_price","bid_price","bid_amount"]
[1738858498734,21.71408123,193.0,192.85,5.4]
[1738858498735,1.97194994,192.99,192.85,5.4]
[1738858498940,1.97194994,192.99,192.76,5.78056696]
[1738858498941,0.12549,192.93,192.76,5.78056696]
[1738858499120,20.0,192.87,192.76,5.4]
[1738858499462,1.12549,192.84,192.68,16.7708]
[1738858499625,20.0,192.79,192.68,5.4]
[1738858499834,0.12549,192.77,192.68,5.4]
[1738858500062,20.71408123,192.69,192.59,20.71408123]
[1738858500354,20.71408123,192.69,192.62,20.71408123]
[1738858500521,1.6554,192.75,192.57,1.3827838]
[1738858500721,20.71408123,192.72,192.59,20.0]
[1738858501119,25.90288123,192.72,192.58,19.10640853]
[1738858501323,25.90288123,192.72,192.65,20.71408123]
[1738858501637,20.71408123,192.78,192.71,20.71408123]
[1738858501826,20.0,192.75,192.72,20.71408123]
[1738858502022,20.71408123,192.76,192.69,20.71408123]
[1738858502344,20.97291848,192.76,192.66,5.4]
[1738858502547,20.0,192.76,192.66,5.4]
[1738858502750,0.9730136,192.75,192.66,5.4]
[1738858503040,0.9730136,192.75,192.58,18.1742]
[1738858503041,2.12549,192.74,192.58,10.5926]
[1738858503261,40.71408123,192.7,192.63,20.71408123]
[1738858503425,40.71408123,192.7,192.59,20.71408123]
[1738858503426,20.71408123,192.66,192.59,20.71408123]
[1738858503623,20.71408123,192.62,192.55,26.11408123]
[1738858503823,1.12549,192.68,192.55,5.4]
[1738858503824,20.12549,192.66,192.55,5.4]
[1738858504040,21.09915214,192.66,192.55,5.4]
[1738858504244,20.0,192.66,192.56,13.78831853]
[1738858504454,1.9734193,192.72,192.56,13.78831853]
[1738858504674,20.0,192.7,192.56,0.37647]
[1738858504873,2.97345007,192.69,192.55,5.4]
[1738858505080,0.12549,192.68,192.55,5.4]
[1738858505354,20.71408123,192.63,192.56,20.71408123]
[1738858505792,20.71408123,192.61,192.55,5.4]
[1738858506762,20.71408123,192.61,192.54,20.71408123]
[1738858506968,20.71408123,192.6,192.53,20.71408123]
[1738858507353,25.90598123,192.61,192.54,20.71408123]
[1738858507673,0.97373052,192.65,192.57,20.71408123]
[1738858507674,20.71408123,192.64,192.57,20.71408123]
[1738858507870,20.71408123,192.66,192.59,20.71408123]
[1738858508174,25.90438123,192.67,192.6,20.71408123]
[1738858508341,0.97350289,192.66,192.56,20.71408123]
[1738858508541,20.71408123,192.62,192.56,20.71408123]
[1738858508781,20.71408123,192.59,192.52,20.71408123]
[1738858509076,20.71408123,192.59,192.56,0.063]
[1738858509455,0.97364275,192.63,192.56,0.063]
[1738858509456,20.71408123,192.58,192.56,0.063]
[1738858509657,20.71408123,192.59,192.56,0.063]
[1738858510284,20.71408123,192.6,192.56,0.063]
[1738858510576,20.71408123,192.57,192.56,0.063]
[1738858510953,26.88110074,192.57,192.56,0.063]
[1738858511591,20.0,192.54,192.45,20.71408123]
[1738858511760,20.71408123,192.5,192.44,20.71408123]
[1738858511967,20.71408123,192.52,192.45,20.71408123]
[1738858512177,20.71408123,192.53,192.46,20.71408123]
[1738858512495,0.11062434,192.47,192.41,0.063]
[1738858512885,0.11062434,192.47,192.41,0.43947]
[1738858513064,0.11062434,192.47,192.41,5.2601]
[1738858513266,0.11062434,192.47,192.41,5.26]
[1738858513478,0.11062434,192.47,192.42,0.12549]
[1738858513663,0.11062434,192.47,192.45,20.71408123]
[1738858513858,0.11062434,192.47,192.44,20.71408123]
[1738858514063,0.11062434,192.47,192.42,20.71408123]
[1738858514294,20.82470557,192.47,192.41,0.063]
[1738858514499,26.02030557,192.47,192.41,0.063]
[1738858514674,20.71408123,192.45,192.41,0.063]
[1738858515096,5.30622434,192.47,192.41,0.063]
[1738858515097,0.11062434,192.47,192.44,20.71408123]
[1738858515292,0.11062434,192.47,192.43,20.71408123]
[1738858515504,0.11062434,192.47,192.41,0.063]
[1738858515672,20.71408123,192.46,192.41,0.063]
[1738858515975,26.02030557,192.47,192.41,0.063]
[1738858516178,20.71408123,192.46,192.41,0.063]
[1738858516378,5.30622434,192.47,192.41,0.063]
[1738858516590,20.71408123,192.44,192.41,0.063]
[1738858516793,26.02030557,192.47,192.41,0.063]
[1738858516996,20.71408123,192.46,192.41,0.063]
[1738858517299,6.28074279,192.47,192.41,0.18849]
[1738858517300,0.11062434,192.47,192.41,0.18849]
[1738858517512,0.11062434,192.47,192.42,0.12549]
[1738858518005,0.11062434,192.47,192.41,0.063]
[1738858518370,0.11062434,192.47,192.46,20.71408123]
[1738858518969,0.11062434,192.47,192.44,20.71408123]
[1738858519625,0.11062434,192.47,192.42,20.71408123]
[1738858519791,0.11062434,192.47,192.41,25.97428123]
[1738858520108,0.11062434,192.47,192.42,20.71408123]
[1738858520319,0.11062434,192.47,192.45,20.71408123]
[1738858520495,0.11062434,192.47,192.44,20.71408123]
[1738858520836,0.11062434,192.47,192.45,20.71408123]
[1738858521115,0.11062434,192.47,192.46,20.96506123]
[1738858521279,0.11062434,192.47,192.46,26.16086123]
[1738858521483,0.11062434,192.47,192.46,20.71408123]
[1738858522007,0.11062434,192.47,192.45,20.71408123]
[1738858522201,0.11062434,192.47,192.43,20.71408123]
[1738858522513,0.11062434,192.47,192.45,20.71408123]
[1738858522914,0.11062434,192.47,192.44,20.71408123]
[1738858523088,25.91018123,192.46,192.41,0.063]
[1738858523283,5.1961,192.46,192.41,0.063]
[1738858523497,0.11062434,192.47,192.43,0.12549]
[1738858523702,0.11062434,192.47,192.42,20.71408123]
[1738858523904,26.02040557,192.47,192.41,0.063]
[1738858524291,20.71408123,192.45,192.41,0.063]
[1738858524609,5.30632434,192.47,192.41,0.063]
[1738858524610,20.71408123,192.44,192.41,0.063]
[1738858525019,26.99488414,192.47,192.41,0.063]
[1738858525192,20.0,192.44,192.41,20.77708123]
[1738858525392,0.11062434,192.47,192.43,20.71408123]
[1738858525595,7.44329239,192.5,192.43,20.71408123]
[1738858525846,20.71408123,192.49,192.42,20.71408123]
[1738858526117,20.71408123,192.47,192.41,0.063]
[1738858526627,0.9743505,192.49,192.41,0.063]
[1738858526628,20.71408123,192.46,192.41,0.063]
[1738858526803,20.71408123,192.47,192.41,0.063]
[1738858527143,20.71408123,192.45,192.41,0.063]
[1738858527328,20.71408123,192.43,192.41,0.063]
[1738858528248,20.71408123,192.42,192.41,0.063]
[1738858528738,21.68879582,192.42,192.41,0.063]
[1738858529117,20.71408123,192.42,192.41,0.063]
[1738858529443,20.0,192.39,192.36,0.063]
[1738858529620,20.71408123,192.37,192.36,0.063]
[1738858530011,21.68902977,192.37,192.36,0.063]
[1738858531242,26.88732977,192.37,192.36,0.063]
[1738858531650,20.71408123,192.3,192.24,20.71408123]
[1738858531961,20.71408123,192.3,192.23,5.4]
[1738858532128,2.97526204,192.35,192.24,20.71408123]
[1738858532129,20.71408123,192.31,192.24,20.71408123]
[1738858532327,0.1005042,192.26,192.23,5.4]
[1738858532653,0.1005042,192.26,192.25,21.09055123]
[1738858532858,0.1005042,192.26,192.25,34.62788976]
[1738858533432,0.1005042,192.26,192.25,39.82938976]
[1738858533642,0.1005042,192.26,192.25,26.16656123]
[1738858534650,0.1005042,192.26,192.25,39.82938976]
[1738858535019,4.2e-06,192.26,192.25,39.82938976]
[1738858535359,0.09684683,192.28,192.26,15.51090853]
[1738858535653,0.09684683,192.28,192.27,19.11480853]
[1738858536952,0.09684683,192.28,192.27,20.96506123]
[1738858537113,0.09684683,192.28,192.27,20.71408123]
[1738858537314,0.09684683,192.28,192.24,25.91578123]
[1738858537516,0.09684683,192.28,192.23,26.11408123]
[1738858537818,0.09684683,192.28,192.25,20.71408123]
[1738858538249,0.09684683,192.28,192.23,5.202]
[1738858538250,0.09684683,192.28,192.27,20.71408123]
[1738858538763,0.09684683,192.28,192.25,20.71408123]
[1738858539050,0.09684683,192.28,192.24,20.71408123]
[1738858539820,26.01172806,192.28,192.22,20.71408123]
[1738858540418,26.01172806,192.28,192.21,20.77708123]
[1738858540620,20.71408123,192.26,192.21,0.063]
[1738858540931,20.71408123,192.25,192.21,0.063]
[1738858541133,5.201,192.27,192.23,20.71408123]
[1738858541329,5.201,192.27,192.22,20.71408123]
[1738858541523,5.201,192.27,192.23,20.71408123]
[1738858541759,5.201,192.27,192.22,20.71408123]
[1738858542048,5.201,192.27,192.21,20.77708123]
[1738858542972,5.201,192.27,192.22,20.71408123]
[1738858543349,5.201,192.27,192.21,20.77708123]
[1738858544272,0.09684683,192.28,192.22,20.71408123]
[1738858544471,0.09684683,192.28,192.23,20.71408123]
[1738858544472,5.29754683,192.28,192.23,20.71408123]
[1738858544663,20.0,192.27,192.23,20.71408123]
[1738858544868,0.09684683,192.28,192.26,20.71408123]
[1738858545063,0.09684683,192.28,192.27,20.71408123]
[1738858546572,0.09684683,192.28,192.25,20.71408123]
[1738858546760,0.09684683,192.28,192.26,20.71408123]
[1738858547156,0.09684683,192.28,192.25,20.71408123]
[1738858547360,0.09684683,192.28,192.24,20.71408123]
[1738858547770,0.09684683,192.28,192.27,20.71408123]
[1738858548446,0.09684683,192.28,192.27,25.91508123]
[1738858548650,0.09684683,192.28,192.27,20.71408123]
[1738858548859,0.09684683,192.28,192.24,20.71408123]
[1738858549063,0.09684683,192.28,192.27,20.71408123]
[1738858549659,0.09684683,192.28,192.27,20.96506123]
[1738858549864,0.09684683,192.28,192.27,21.09055123]
[1738858550558,0.09684683,192.28,192.27,26.29155123]
[1738858551868,4.683e-05,192.28,192.27,39.82888976]
[1738858552082,5.46e-05,192.3,192.29,1.50196]
[1738858552382,4.265e-05,192.35,192.34,33.91380853]
[1738858552678,4.921e-05,192.37,192.35,13.91380853]
[1738858552883,0.97434184,192.52,192.34,30.96432143]
[1738858552884,20.71408123,192.51,192.4,0.50196]
[1738858553064,13.983,192.56,192.4,0.50196]
[1738858553065,20.71408123,192.53,192.46,20.71408123]
[1738858553244,20.71408123,192.54,192.48,20.71408123]
[1738858553445,20.71408123,192.54,192.44,13.53733853]
[1738858553446,28.61808123,192.57,192.5,20.71408123]
[1738858553657,28.61808123,192.57,192.44,13.53733853]
[1738858553658,7.904,192.57,192.51,20.71408123]
[1738858553849,20.71408123,192.59,192.52,20.71408123]
[1738858554159,20.71408123,192.59,192.51,20.71408123]
[1738858554160,20.71408123,192.58,192.51,20.71408123]
[1738858554675,20.71408123,192.55,192.48,20.71408123]
[1738858554873,5.1927,192.58,192.38,1.0]
[1738858554874,20.71408123,192.53,192.46,20.71408123]
[1738858555199,5.1923,192.6,192.47,13.91380853]
[1738858555574,7.51836561,192.62,192.49,13.91380853]
[1738858555575,11.7361,192.62,192.49,13.91380853]
[1738858555895,6.1935,192.67,192.55,0.25098]
[1738858556085,6.1935,192.67,192.57,0.25098]
[1738858556086,7.1670344,192.67,192.57,0.25098]
[1738858556282,26.90758123,192.67,192.6,20.71408123]
[1738858556484,20.71408123,192.68,192.61,20.71408123]
[1738858556780,20.71408123,192.7,192.63,20.71408123]
[1738858556961,23.08796777,192.73,192.64,20.71408123]
[1738858556962,20.71408123,192.71,192.64,20.71408123]
[1738858557175,20.71408123,192.74,192.67,20.71408123]
[1738858557367,0.03,192.75,192.7,20.71408123]
[1738858557690,0.03,192.75,192.71,0.12549]
[1738858557861,0.03,192.75,192.72,20.71408123]
[1738858558053,0.03,192.75,192.73,34.37690976]
[1738858558253,0.03,192.75,192.74,20.96506123]
[1738858558491,0.03,192.75,192.74,25.90238123]
[1738858558792,0.03,192.75,192.74,39.69069976]
[1738858559376,0.03,192.75,192.72,20.71408123]
[1738858559561,0.03,192.75,192.71,20.71408123]
[1738858559766,0.03,192.75,192.72,20.71408123]
[1738858559996,0.03,192.75,192.73,20.71408123]
[1738858560292,0.03,192.75,192.74,20.71408123]
[1738858560674,0.03,192.75,192.73,38.79222226]
[1738858560864,0.03,192.75,192.74,47.51773079]
[1738858561065,0.03,192.75,192.74,47.89908824]
[1738858561297,0.97238786,192.85,192.74,0.47]
[1738858561487,20.0,192.83,192.73,0.47]
[1738858561792,0.97279162,192.82,192.73,0.47]
[1738858562166,0.97279162,192.82,192.71,0.47]
[1738858562369,33.60392226,192.78,192.72,0.47]
[1738858562596,33.60392226,192.76,192.71,0.47]
[1738858562787,33.60392226,192.76,192.7,5.85]
[1738858562984,33.60392226,192.75,192.7,5.38]
[1738858563196,6.16023665,192.78,192.7,5.38]
[1738858563197,33.60392226,192.74,192.7,5.38]
[1738858563414,33.60392226,192.75,192.7,5.38]
[1738858563694,33.60392226,192.8,192.73,34.07392226]
[1738858563898,5.1853,192.86,192.76,0.47]
[1738858564093,38.78922226,192.86,192.79,33.60392226]
[1738858564296,0.12549,192.84,192.74,0.47]
[1738858564482,53.60392226,192.79,192.74,0.47]
[1738858565079,33.60392226,192.78,192.74,0.47]
[1738858565283,33.60392226,192.77,192.71,0.47]
[1738858565526,33.60392226,192.73,192.67,0.47]
[1738858565712,33.60392226,192.74,192.68,33.60392226]
[1738858565913,33.60392226,192.75,192.68,33.60392226]
[1738858566209,33.60392226,192.74,192.68,34.07392226]
[1738858566420,33.60392226,192.72,192.66,33.60392226]
[1738858566599,33.60392226,192.7,192.65,5.85]
[1738858566794,38.79242226,192.74,192.67,33.60392226]
[1738858566995,20.0,192.71,192.68,33.60392226]
[1738858567316,20.0,192.71,192.65,39.45392226]
[1738858567718,33.60392226,192.7,192.65,5.38]
[1738858567896,20.0,192.71,192.65,5.38]
[1738858567897,33.60392226,192.68,192.65,5.38]
[1738858568091,33.60392226,192.67,192.65,5.38]
[1738858568293,33.60392226,192.68,192.65,5.38]
[1738858568508,33.60392226,192.66,192.61,0.47]
[1738858568713,33.60392226,192.66,192.59,34.07392226]
[1738858568913,33.60392226,192.67,192.6,33.60392226]
[1738858569213,33.60392226,192.63,192.58,0.47]
[1738858569388,33.60392226,192.62,192.56,34.07392226]
[1738858569725,0.97347074,192.66,192.58,0.47]
[1738858569726,33.60392226,192.63,192.58,0.47]
[1738858569886,33.60392226,192.64,192.57,34.07392226]
[1738858570088,33.60392226,192.63,192.57,33.60392226]
[1738858570402,33.60392226,192.63,192.57,34.07392226]
[1738858570601,38.79522226,192.63,192.57,34.07392226]
[1738858570793,38.79522226,192.63,192.56,0.47]
[1738858570794,33.60392226,192.62,192.56,0.47]
[1738858571120,33.60392226,192.6,192.54,0.063]
[1738858571415,33.60392226,192.59,192.54,0.063]
[1738858571587,38.79462226,192.65,192.58,0.47]
[1738858571785,5.1907,192.65,192.58,0.47]
[1738858572011,5.1899,192.68,192.61,0.47]
[1738858572314,0.09693778,192.63,192.6,0.47]
[1738858572695,0.09693778,192.63,192.57,0.47]
[1738858573015,38.79542226,192.62,192.55,33.60392226]
[1738858573615,33.60392226,192.61,192.55,34.07392226]
[1738858573826,33.60392226,192.61,192.54,0.063]
[1738858573827,33.60392226,192.56,192.54,0.063]
[1738858573990,33.60392226,192.56,192.46,33.60392226]
[1738858573991,0.97422848,192.55,192.44,0.47]
[1738858574321,33.60392226,192.49,192.45,0.47]
[1738858574490,33.60392226,192.5,192.45,0.47]
[1738858574811,33.60392226,192.51,192.45,0.47]
[1738858575192,33.60392226,192.5,192.44,0.47]
[1738858575415,34.57831055,192.49,192.44,0.47]
[1738858576708,5.1953,192.48,192.44,0.47]
[1738858577405,38.79892226,192.5,192.45,0.47]
[1738858577599,5.195,192.5,192.44,34.07392226]
[1738858577800,38.79892226,192.5,192.44,0.47]
[1738858578517,39.77328063,192.5,192.44,0.47]
[1738858578717,38.79912226,192.49,192.44,0.47]
[1738858579417,34.57831475,192.48,192.45,0.47]
[1738858579592,33.60392226,192.47,192.45,0.47]
[1738858580003,20.0,192.44,192.4,34.07392226]
[1738858580207,33.60392226,192.42,192.36,34.07392226]
[1738858580516,0.97449548,192.46,192.33,34.07392226]
[1738858580517,33.60392226,192.4,192.33,34.07392226]
[1738858580825,20.76586951,192.39,192.33,20.76586951]
[1738858580996,20.76586951,192.39,192.32,26.61586951]
[1738858581195,20.76586951,192.38,192.31,21.23586951]
[1738858581413,20.76586951,192.38,192.32,21.23586951]
[1738858581630,20.76586951,192.39,192.32,21.23586951]
[1738858582204,20.76586951,192.38,192.31,21.23586951]
[1738858582622,33.74574567,192.41,192.35,0.47]
[1738858582928,5.1972,192.41,192.36,34.21574567]
[1738858583229,1.10048658,192.43,192.36,34.21574567]
[1738858583230,39.91754225,192.43,192.36,34.21574567]
[1738858583441,39.91754225,192.43,192.37,34.21574567]
[1738858583606,38.94254567,192.43,192.39,0.47]
[1738858583933,38.94254567,192.43,192.38,0.47]
[1738858584227,1.68209,192.47,192.35,5.1987]
[1738858584228,33.74574567,192.47,192.41,0.47]
[1738858584543,6.16978658,192.49,192.43,34.21574567]
[1738858584834,0.97440159,192.49,192.48,0.47]
[1738858585037,5.2237,192.54,192.48,0.47]
[1738858585210,0.03,192.54,192.49,0.47]
[1738858585405,0.03,192.54,192.52,0.47]
[1738858585729,0.03,192.54,192.44,0.25098]
[1738858585730,0.03,192.54,192.53,0.47]
[1738858585952,0.03,192.54,192.53,34.21574567]
[1738858586305,0.03,192.54,192.53,53.5095542]
[1738858586508,0.09693778,192.63,192.6,0.47]
[1738858586708,0.09693778,192.63,192.62,39.40724567]
[1738858587109,0.09693778,192.63,192.62,34.21574567]
[1738858587333,3.778e-05,192.63,192.62,48.1295542]
[1738858587542,0.09802025,192.66,192.65,34.25831853]
[1738858587543,6.402e-05,192.66,192.65,34.25831853]
[1738858587718,0.09426332,192.67,192.66,14.38380853]
[1738858587719,2.734e-05,192.67,192.66,14.38380853]
[1738858588132,4.04e-06,192.68,192.67,0.47]
[1738858588448,34.71866905,192.86,192.79,0.47]
[1738858588650,33.74574567,192.87,192.8,33.74574567]
[1738858588812,33.74574567,192.88,192.81,33.74574567]
[1738858589144,33.74574567,192.89,192.82,34.21574567]
[1738858589342,33.74574567,192.9,192.84,0.47]
[1738858589541,6.0099,192.96,192.84,0.47]
[1738858589542,33.74574567,192.91,192.85,0.47]
[1738858589843,33.74574567,192.95,192.88,34.21574567]
[1738858590047,33.74574567,192.96,192.9,0.47]
[1738858590233,0.97196938,192.99,192.85,13.41184853]
[1738858590234,34.71771505,192.99,192.94,0.47]
[1738858590416,2.53374744,193.04,192.9,34.21574567]
[1738858590417,33.74574567,192.96,192.9,34.21574567]
[1738858590619,0.97189339,193.03,192.93,0.47]
[1738858590828,5.1802,193.04,192.93,5.6531]
[1738858591041,0.97161607,193.08,192.98,0.47]
[1738858591344,0.97161607,193.08,192.99,0.47]
[1738858591544,33.74574567,193.06,193.0,33.74574567]
[1738858591712,33.74574567,193.08,193.01,33.74574567]
[1738858592026,33.74574567,193.09,193.02,33.74574567]
[1738858592226,0.10702953,193.02,192.96,0.47]
[1738858592429,0.10702953,193.02,192.99,0.47]
[1738858592731,0.10702953,193.02,193.01,0.47]
[1738858593252,0.10702953,193.02,193.0,0.47]
[1738858593428,0.10702953,193.02,192.96,34.21574567]
[1738858593629,0.10702953,193.02,192.96,33.74574567]
[1738858594051,33.8527752,193.02,192.96,34.21574567]
[1738858594222,0.10702953,193.02,192.97,33.74574567]
[1738858594419,0.10702953,193.02,193.0,33.74574567]
[1738858594616,0.10702953,193.02,193.01,34.21574567]
[1738858595259,0.10702953,193.02,192.97,33.74574567]
[1738858595631,0.10702953,193.02,193.0,0.47]
[1738858595831,0.10702953,193.02,193.01,33.74574567]
[1738858596052,0.10702953,193.02,193.01,34.21574567]
[1738858598358,0.10702953,193.02,193.01,39.57574567]
[1738858598535,0.10702953,193.02,193.01,39.95470244]
[1738858598863,0.10702953,193.02,193.01,39.57574567]
[1738858599759,0.10702953,193.02,193.01,5.36]
[1738858599955,0.10702953,193.02,192.97,0.47]
[1738858600151,0.10702953,193.02,192.97,34.21574567]
[1738858600331,33.74574567,193.0,192.94,0.47]
[1738858600528,33.74574567,192.95,192.91,5.36]
[1738858600759,33.74574567,192.96,192.91,5.36]
[1738858601069,33.02814806,193.02,192.91,5.36]
[1738858601070,0.97201582,193.01,192.95,0.47]
[1738858601224,20.0,192.99,192.95,0.47]
[1738858601431,5.1813,193.0,192.96,0.47]
[1738858601656,39.89881247,193.0,192.94,0.47]
[1738858601859,33.74574567,192.96,192.92,0.47]
[1738858602058,34.71779192,192.96,192.91,5.83]
[1738858602235,0.97204625,192.96,192.87,0.47]
[1738858602744,33.74574567,192.94,192.89,0.47]
[1738858603056,33.74574567,192.94,192.9,0.47]
[1738858603438,33.74574567,192.92,192.86,0.47]
[1738858603643,0.97224349,192.96,192.9,33.74574567]
[1738858603844,0.97224349,192.96,192.91,33.74574567]
[1738858603845,6.15457826,192.96,192.91,33.74574567]
[1738858604043,6.15457826,192.96,192.81,14.16912743]
[1738858604044,0.12549,192.88,192.81,0.47]
[1738858604342,20.97261907,192.87,192.77,0.47]
[1738858604537,20.97261907,192.87,192.7,46.71894567]
[1738858604538,20.97261907,192.87,192.78,0.47]
[1738858604742,0.97261907,192.87,192.77,0.47]
[1738858605130,33.74574567,192.84,192.76,34.21574567]
[1738858605326,33.74574567,192.81,192.75,0.47]
[1738858605578,33.74574567,192.82,192.76,0.47]
[1738858605727,34.71847846,192.85,192.78,0.47]
[1738858605930,34.71847846,192.85,192.81,0.47]
[1738858606329,34.71840923,192.89,192.83,0.47]
[1738858606528,34.71840923,192.89,192.82,33.74574567]
[1738858606529,5.1843,192.89,192.85,0.47]
[1738858606750,5.1838,192.91,192.87,0.47]
[1738858606961,20.0,192.9,192.87,34.21574567]
[1738858607265,20.0,192.9,192.87,0.47]
[1738858607558,25.184,192.9,192.87,0.47]
[1738858607753,58.92974567,192.9,192.86,0.47]
[1738858607942,38.92944567,192.92,192.86,0.47]
[1738858608139,5.1832,192.94,192.9,0.47]
[1738858608334,0.97207902,192.99,192.92,0.47]
[1738858608536,5.182,192.98,192.92,0.47]
[1738858608741,20.0,192.95,192.92,0.47]
[1738858608930,5.182,192.98,192.92,0.47]
[1738858609132,5.182,192.98,192.93,0.47]
[1738858609335,5.182,192.98,192.94,0.47]
[1738858609534,5.182,192.98,192.93,0.47]
[1738858609730,33.74574567,192.97,192.92,0.47]
[1738858609963,33.74574567,192.96,192.9,0.47]
[1738858610149,18.1367,192.98,192.9,0.47]
[1738858610463,33.74574567,192.96,192.91,0.47]
[1738858610665,33.74574567,192.96,192.89,34.21574567]
[1738858610832,33.74574567,192.94,192.88,0.47]
[1738858611038,0.97218194,192.94,192.88,0.47]
[1738858611238,0.97218194,192.94,192.8,40.61114567]
[1738858611239,33.74574567,192.89,192.86,0.47]
[1738858611454,33.74574567,192.91,192.86,0.47]
[1738858611648,53.74574567,192.9,192.85,0.47]
[1738858611972,33.74574567,192.86,192.81,0.47]
[1738858612151,33.74574567,192.87,192.82,0.47]
[1738858612467,0.10031146,192.86,192.82,34.21574567]
[1738858612768,0.10031146,192.86,192.81,34.21574567]
[1738858612962,0.10031146,192.86,192.82,0.47]
[1738858613266,0.10031146,192.86,192.81,34.21574567]
[1738858613445,0.10031146,192.86,192.85,0.47]
[1738858613651,0.10031146,192.86,192.85,39.40104567]
[1738858614768,1.146e-05,192.86,192.85,53.1893642]
[1738858614956,2.318e-05,192.88,192.87,14.25831853]
[1738858615268,33.74574567,193.02,192.87,14.25831853]
[1738858615269,6.858e-05,192.92,192.91,0.72098]
[1738858615447,6.858e-05,192.92,192.91,39.80672567]
[1738858615649,6.858e-05,192.92,192.91,58.90760447]
[1738858615846,6.858e-05,192.92,192.91,58.5277642]
[1738858616052,6.858e-05,192.92,192.91,44.99042567]
[1738858617048,6.858e-05,192.92,192.91,44.73944567]
[1738858617366,6.858e-05,192.92,192.91,39.55574567]
[1738858617567,6.858e-05,192.92,192.91,5.81]
[1738858619748,6.858e-05,192.92,192.91,5.34]
[1738858619942,6.858e-05,192.92,192.9,0.47]
[1738858620260,6.858e-05,192.92,192.88,0.47]
[1738858620866,6.858e-05,192.92,192.89,0.47]
[1738858621071,6.858e-05,192.92,192.91,39.39944567]
[1738858621468,6.858e-05,192.92,192.88,0.47]
[1738858622473,33.74574567,192.91,192.86,0.47]
[1738858622663,33.74574567,192.88,192.84,0.47]
[1738858622864,33.74574567,192.88,192.81,33.74574567]
[1738858622865,33.74574567,192.85,192.8,0.47]
[1738858623246,33.74574567,192.85,192.81,0.47]
[1738858623568,33.74574567,192.84,192.8,0.47]
[1738858623768,33.74574567,192.82,192.78,0.47]
[1738858623972,33.74574567,192.82,192.79,0.47]
[1738858624356,33.74574567,192.82,192.78,0.47]
[1738858624789,5.1851,192.86,192.73,0.47]
[1738858624790,33.74574567,192.79,192.73,0.47]
[1738858624987,33.74574567,192.77,192.72,0.47]
[1738858625195,33.74574567,192.78,192.72,0.47]
[1738858625359,33.74574567,192.78,192.73,0.47]
[1738858625557,33.74574567,192.75,192.68,34.21574567]
[1738858625782,1.0,192.79,192.67,0.47]
[1738858625783,33.74574567,192.72,192.67,0.47]
[1738858625994,33.74574567,192.73,192.67,0.47]
[1738858626160,33.74574567,192.72,192.67,0.47]
[1738858626359,34.71896209,192.72,192.67,0.47]
[1738858626649,33.74574567,192.71,192.65,0.47]
[1738858626977,33.74574567,192.67,192.61,0.47]
[1738858627151,33.74574567,192.65,192.59,34.21574567]
[1738858627354,38.93644567,192.65,192.59,34.21574567]
[1738858627685,5.1907,192.65,192.6,0.47]
[1738858627864,5.1907,192.65,192.59,0.47]
[1738858627865,38.93644567,192.65,192.59,0.47]
[1738858628181,33.74574567,192.63,192.58,0.47]
[1738858628524,33.74574567,192.63,192.57,0.47]
[1738858628668,0.97366217,192.62,192.57,0.47]
[1738858629352,33.74574567,192.65,192.59,33.74574567]
[1738858629559,33.74574567,192.62,192.57,0.47]
[1738858629878,33.74574567,192.62,192.56,0.47]
[1738858629879,33.74574567,192.6,192.56,0.47]
[1738858630080,0.97390431,192.59,192.56,0.47]
[1738858630378,0.97390431,192.59,192.47,0.25098]
[1738858630579,34.71964998,192.59,192.52,33.74574567]
[1738858630787,33.74574567,192.56,192.49,33.74574567]
[1738858630970,33.74574567,192.59,192.52,33.74574567]
[1738858631158,33.74574567,192.57,192.5,33.74574567]
[1738858631479,38.93844567,192.58,192.51,33.74574567]
[1738858631779,0.97398077,192.57,192.51,33.74574567]
[1738858631991,33.74574567,192.55,192.48,33.74574567]
[1738858632180,33.74574567,192.53,192.46,33.74574567]
[1738858632404,33.74574567,192.51,192.45,33.74574567]
[1738858632709,34.72012783,192.51,192.44,33.74574567]
[1738858632891,33.74574567,192.5,192.43,33.74574567]
[1738858633206,0.10968221,192.52,192.48,33.74574567]
[1738858633407,0.10968221,192.52,192.41,13.78831853]
[1738858633608,0.10968221,192.52,192.43,12.9917]